bitfinex-derivatives/quotes_BTCF0:USTF0_20251111
["timestamp","ask_amount","ask_price","bid_price","bid_amount"]
[1762894776648,1.0734783,102820.0,102810.0,0.001]
[1762894777247,0.1443104,102800.0,102790.0,0.00014598]
[1762894777555,1.07215132,102800.0,102790.0,0.09966391]
[1762894777746,1.07215132,102800.0,102790.0,0.04566401]
[1762894777950,1.07215132,102800.0,102790.0,0.14298391]
[1762894778653,0.55862092,102800.0,102790.0,0.14298391]
[1762894778846,0.83220303,102800.0,102790.0,0.14298391]
[1762894779053,0.73489263,102800.0,102790.0,0.14298391]
[1762894779250,0.73589263,102800.0,102790.0,0.14498391]
[1762894779452,0.37509263,102800.0,102790.0,0.14498391]
[1762894780260,0.00173263,102800.0,102790.0,0.50578391]
[1762894780461,0.09904303,102800.0,102790.0,0.14498391]
[1762894780655,0.001,102800.0,102790.0,0.50578391]
[1762894780857,0.001,102800.0,102790.0,0.74898391]
[1762894781055,0.001,102800.0,102790.0,0.50578391]
[1762894781260,0.04451263,102800.0,102790.0,0.14498391]
[1762894781460,0.04451263,102800.0,102790.0,0.50578391]
[1762894781659,0.001,102800.0,102790.0,0.9460722]
[1762894781965,0.87437748,102820.0,102810.0,0.04332]
[1762894782255,0.87511011,102820.0,102810.0,0.14281903]
[1762894782659,0.87511011,102820.0,102810.0,0.50361903]
[1762894782660,0.06429497,102820.0,102810.0,0.50361903]
[1762894782848,0.02151497,102820.0,102810.0,0.50361903]
[1762894783048,0.00087861,102820.0,102810.0,0.50361903]
[1762894783550,0.09817011,102820.0,102810.0,0.50361903]
[1762894783752,0.00087861,102820.0,102810.0,0.50361903]
[1762894784052,0.3608,102840.0,102830.0,0.140602]
[1762894784255,0.02138591,102840.0,102830.0,0.50360003]
[1762894785269,0.3625268,102840.0,102830.0,0.50460003]
[1762894785460,0.2652542,102840.0,102830.0,0.50460003]
[1762894785660,0.02538591,102840.0,102830.0,0.40731803]
[1762894785867,0.2224742,102840.0,102830.0,0.40731803]
[1762894786060,0.20182092,102840.0,102830.0,0.40731803]
[1762894786367,0.20182092,102840.0,102830.0,0.50460013]
[1762894787176,0.20182092,102840.0,102830.0,0.40731803]
[1762894787364,0.34187352,102840.0,102830.0,0.04651803]
[1762894787566,0.34034057,102840.0,102830.0,0.04651803]
[1762894788067,0.36094478,102840.0,102830.0,0.04651803]
[1762894788672,0.36754478,102840.0,102830.0,0.00319803]
[1762894788870,0.36094478,102840.0,102830.0,0.04651803]
[1762894789264,0.36093869,102840.0,102830.0,0.04651803]
[1762894789463,0.5246504,102840.0,102830.0,0.04651803]
[1762894789664,0.72173869,102840.0,102830.0,0.04651803]
[1762894789871,0.36093869,102840.0,102830.0,0.04651803]
[1762894790176,0.24306797,102840.0,102830.0,0.40731803]
[1762894790374,0.34034057,102840.0,102830.0,0.04651803]
[1762894790676,0.24306797,102840.0,102830.0,0.04651803]
[1762894790974,0.04597968,102840.0,102830.0,0.14380003]
[1762894791376,0.52464391,102840.0,102830.0,0.04651803]
[1762894791669,0.2636596,102840.0,102830.0,0.04651803]
[1762894791867,0.14325228,102840.0,102830.0,0.04651803]
[1762894792067,0.04597968,102840.0,102830.0,0.04651803]
[1762894792263,0.16384229,102840.0,102830.0,0.04651803]
[1762894792467,0.52464229,102840.0,102830.0,0.04651803]
[1762894792670,0.72173058,102840.0,102830.0,0.04651803]
[1762894792868,0.36093058,102840.0,102830.0,0.04651803]
[1762894794376,0.36093058,102840.0,102830.0,0.50460003]
[1762894794377,0.02378969,102840.0,102830.0,0.50460003]
[1762894794566,0.39690969,102840.0,102830.0,0.50460003]
[1762894794771,0.39674969,102840.0,102830.0,0.50460003]
[1762894795172,0.02378969,102840.0,102830.0,0.50460003]
[1762894795370,0.00014598,102850.0,102840.0,0.0972726]
[1762894795571,0.04369,102870.0,102860.0,0.1538337]
[1762894795885,0.8748048,102880.0,102870.0,0.04346]
[1762894796083,0.89539645,102880.0,102870.0,0.04565803]
[1762894797077,0.79816165,102880.0,102870.0,0.14290223]
[1762894797277,0.79816165,102880.0,102870.0,0.04565803]
[1762894797278,0.89539635,102880.0,102870.0,0.04565803]
[1762894797468,1.09921464,102880.0,102870.0,0.00219803]
[1762894797670,0.1409342,102870.0,102860.0,0.09739968]
[1762894797976,0.71941414,102870.0,102860.0,0.00234401]
[1762894798178,0.62216994,102870.0,102860.0,0.02444401]
[1762894798375,0.06428165,102870.0,102860.0,0.15773771]
[1762894798572,0.04369,102870.0,102860.0,0.15773771]
[1762894798778,0.8803847,102880.0,102870.0,0.1424342]
[1762894798980,0.90103026,102880.0,102870.0,0.14463223]
[1762894799283,0.80379556,102880.0,102870.0,0.14463223]
[1762894799875,0.80079556,102880.0,102870.0,0.14463223]
[1762894800381,0.75705598,102890.0,102880.0,0.1553047]
[1762894800577,0.89807767,102890.0,102880.0,0.15750273]
[1762894800790,0.42793237,102890.0,102880.0,0.15750273]
[1762894801082,0.06713237,102890.0,102880.0,0.15750273]
[1762894801481,0.05049598,102890.0,102880.0,0.15850273]
[1762894801983,0.00414598,102890.0,102880.0,0.64921542]
[1762894802173,0.00414598,102890.0,102880.0,0.76701542]
[1762894802373,0.02733598,102890.0,102880.0,0.40150273]
[1762894802677,0.05049598,102890.0,102880.0,0.15850273]
[1762894802876,0.3608,102900.0,102890.0,0.1424153]
[1762894803077,0.5043473,102920.0,102910.0,0.02203]
[1762894803274,0.5094973,102920.0,102910.0,0.00219803]
[1762894803876,0.42774261,102920.0,102910.0,0.14459443]
[1762894804182,0.002,102920.0,102910.0,0.14559443]
[1762894804478,0.002,102920.0,102910.0,0.39330712]
[1762894804676,0.004,102920.0,102910.0,0.39330712]
[1762894805385,0.004,102920.0,102910.0,0.75410712]
[1762894806081,0.004,102920.0,102910.0,1.12754712]
[1762894808082,0.00014598,102930.0,102920.0,0.155267]
[1762894808301,0.40729598,102930.0,102920.0,0.15746503]
[1762894808586,0.04649598,102930.0,102920.0,0.15746503]
[1762894809180,0.88000358,102930.0,102920.0,0.00219803]
[1762894809375,0.1435565,102910.0,102900.0,0.00014598]
[1762894809584,0.8779165,102910.0,102900.0,0.00234401]
[1762894810089,1.12562919,102910.0,102900.0,0.00014598]
[1762894810482,0.8779165,102910.0,102900.0,0.00114598]
[1762894810683,1.12562919,102910.0,102900.0,0.00114598]
[1762894810886,0.8779165,102910.0,102900.0,0.00114598]
[1762894811279,0.8779165,102910.0,102900.0,0.00334401]
[1762894811692,0.8779165,102910.0,102900.0,0.10055991]
[1762894812388,0.8779165,102910.0,102900.0,0.00234401]
[1762894812583,0.8779165,102910.0,102900.0,0.10055991]
[1762894812790,0.40715,102910.0,102900.0,0.4063426]
[1762894812983,0.40715,102920.0,102910.0,0.1423964]
[1762894813184,0.78083,102920.0,102910.0,0.39230712]
[1762894813692,0.878027,102920.0,102910.0,0.39230712]
[1762894813880,0.78083,102920.0,102910.0,0.39230712]
[1762894814081,0.78283,102920.0,102910.0,0.39230712]
[1762894814986,0.002,102920.0,102910.0,0.39230712]
[1762894815289,0.002,102920.0,102910.0,0.76594712]
[1762894815486,0.38413598,102930.0,102920.0,0.155267]
[1762894815693,0.38413598,102930.0,102920.0,0.40517772]
[1762894815990,0.40729598,102930.0,102920.0,0.40517772]
[1762894816294,0.40729598,102930.0,102920.0,0.30798072]
[1762894816591,0.40929598,102930.0,102920.0,0.30798072]
[1762894816787,0.50648348,102930.0,102920.0,0.00219803]
[1762894817088,0.1435564,102910.0,102900.0,0.30592867]
[1762894817290,0.1435564,102910.0,102900.0,0.3081267]
[1762894817592,0.04635,102910.0,102900.0,0.4053426]
[1762894817885,0.1435564,102910.0,102900.0,0.3081267]
[1762894818690,0.5043564,102910.0,102900.0,0.3081267]
[1762894818894,0.5043564,102910.0,102900.0,0.2720867]
[1762894819078,0.5043564,102910.0,102900.0,0.2730867]
[1762894819990,0.5043564,102910.0,102900.0,0.2720867]
[1762894820190,0.5043564,102910.0,102900.0,0.2962467]
[1762894821294,0.5043564,102910.0,102900.0,0.00334401]
[1762894821693,0.5043564,102910.0,102900.0,0.2510567]
[1762894821889,0.40715,102910.0,102900.0,0.3085367]
[1762894822096,0.5043566,102910.0,102900.0,0.06082401]
[1762894822288,0.5043566,102910.0,102900.0,0.3085367]
[1762894822483,0.5043566,102910.0,102900.0,0.3075367]
[1762894822697,0.5063566,102910.0,102900.0,0.3075367]
[1762894823294,0.5053566,102910.0,102900.0,0.3075367]
[1762894823489,0.5053566,102910.0,102900.0,0.2731167]
[1762894823490,0.5063566,102910.0,102900.0,0.2731167]
[1762894823791,0.5063566,102910.0,102900.0,0.02540401]
[1762894824498,0.5063566,102910.0,102900.0,0.15704011]
[1762894824694,0.5063566,102910.0,102900.0,0.05982401]
[1762894825095,0.5063566,102910.0,102900.0,0.3075367]
[1762894826499,0.002,102910.0,102900.0,0.4047528]
[1762894827997,0.1447066,102910.0,102900.0,0.3075367]
[1762894828294,0.002,102910.0,102900.0,0.4047528]
[1762894831199,0.0992066,102910.0,102900.0,0.7777128]
[1762894831497,0.5055066,102910.0,102900.0,0.3075367]
[1762894831699,0.5055066,102910.0,102900.0,0.2500567]
[1762894832290,0.5055066,102910.0,102900.0,0.2731167]
[1762894832601,0.5055066,102910.0,102900.0,0.2948267]
[1762894833097,0.5055066,102910.0,102900.0,0.2500567]
[1762894833596,0.5055066,102910.0,102900.0,0.2731167]
[1762894834100,0.5055066,102910.0,102900.0,0.00234401]
[1762894836303,0.5055066,102910.0,102900.0,0.02540401]
[1762894836900,0.5055066,102910.0,102900.0,0.2731167]
[1762894839911,0.5055066,102910.0,102900.0,0.3075367]
[1762894842507,0.5055066,102910.0,102900.0,0.4047528]
[1762894842802,0.52630113,102910.0,102900.0,0.4047528]
[1762894843003,0.38259453,102910.0,102900.0,0.4047528]
[1762894843209,0.02079453,102910.0,102900.0,1.1380328]
[1762894843405,0.3608,102920.0,102910.0,0.1546866]
[1762894843707,0.3815968,102920.0,102910.0,0.40459732]
[1762894844702,0.3825968,102920.0,102910.0,0.40459732]
[1762894844896,0.3835968,102920.0,102910.0,0.40459732]
[1762894845608,0.0227968,102920.0,102910.0,0.40459732]
[1762894846409,0.0227968,102920.0,102910.0,0.76539732]
[1762894846606,0.01722422,102920.0,102910.0,0.76539732]
[1762894846810,0.00014598,102930.0,102920.0,0.1546772]
[1762894847011,0.00014598,102930.0,102920.0,1.13798792]
[1762894847711,0.0455,102950.0,102940.0,0.05748]
[1762894847913,0.0455,102950.0,102940.0,0.30739072]
[1762894848412,0.5034599,102960.0,102950.0,0.05748]
[1762894848602,0.38383,102960.0,102950.0,0.40455962]
[1762894848911,0.3608,102960.0,102950.0,0.40455962]
[1762894849310,0.40644598,102970.0,102960.0,0.04477]
[1762894849609,0.50359598,102970.0,102960.0,0.76448012]
[1762894849810,0.50359598,102970.0,102960.0,0.41960803]
[1762894850011,0.50359598,102970.0,102960.0,0.37483803]
[1762894850713,0.50659598,102970.0,102960.0,0.37483803]
[1762894851213,0.50659598,102970.0,102960.0,0.41779803]
[1762894851705,0.1423889,102950.0,102940.0,0.38265598]
[1762894851911,0.1423889,102950.0,102940.0,0.00234401]
[1762894851912,0.8639889,102950.0,102940.0,0.00234401]
[1762894852111,0.76682,102950.0,102940.0,0.390195]
[1762894852407,0.38389,102960.0,102950.0,0.1401289]
[1762894852614,0.02309,102960.0,102950.0,0.39003962]
[1762894853516,0.1423794,102960.0,102950.0,0.39003962]
[1762894853715,0.1443794,102960.0,102950.0,0.39003962]
[1762894854314,0.1443794,102960.0,102950.0,0.29287072]
[1762894854814,0.1453794,102960.0,102950.0,0.76267962]
[1762894855007,0.04822,102960.0,102950.0,0.76267962]
[1762894855608,0.1453794,102960.0,102950.0,0.39003962]
[1762894855807,0.1453794,102960.0,102950.0,0.76259962]
[1762894856010,0.1453794,102960.0,102950.0,0.76255962]
[1762894856412,0.1453794,102960.0,102950.0,0.39003962]
[1762894856612,0.04822,102960.0,102950.0,0.76251962]
[1762894858015,0.04822,102960.0,102950.0,0.39003962]
[1762894858310,0.003,102960.0,102950.0,1.12331962]
[1762894858915,0.003,102960.0,102950.0,1.13669962]
[1762894860312,2.957e-05,102960.0,102950.0,1.13669962]
[1762894860512,2.957e-05,102960.0,102950.0,1.13657962]
[1762894861020,2.957e-05,102960.0,102950.0,1.04260569]
[1762894861216,2.957e-05,102960.0,102950.0,0.47354693]
[1762894861217,0.11862907,102960.0,102950.0,0.47354693]
[1762894861411,0.04392957,102960.0,102950.0,0.72755569]
[1762894861610,2.957e-05,102960.0,102950.0,0.68168569]
[1762894862116,0.11862907,102960.0,102950.0,0.68168569]
[1762894862411,0.14108907,102960.0,102950.0,0.06144803]
[1762894862612,0.14108907,102960.0,102950.0,0.43368803]
[1762894863017,0.14108907,102960.0,102950.0,0.15861693]
[1762894863212,0.14108907,102960.0,102950.0,0.72751569]
[1762894863417,2.957e-05,102960.0,102950.0,0.68164569]
[1762894863614,0.04392957,102960.0,102950.0,0.72751569]
[1762894863814,0.14108907,102960.0,102950.0,0.72751569]
[1762894864213,0.51248907,102960.0,102950.0,0.00219803]
[1762894864513,0.72984244,102960.0,102950.0,0.00219803]
[1762894864715,0.53314368,102960.0,102950.0,0.00219803]
[1762894864917,0.70918783,102960.0,102950.0,0.00219803]
[1762894865318,0.51248907,102960.0,102950.0,0.02481803]
[1762894865713,0.51248907,102960.0,102950.0,0.15861693]
[1762894865914,0.50188907,102960.0,102950.0,0.15861693]
[1762894866618,0.40472957,102960.0,102950.0,0.15861693]
[1762894866816,0.50188907,102960.0,102950.0,0.15861693]
[1762894867928,0.50188907,102960.0,102950.0,0.06144803]
[1762894868213,0.47855553,102960.0,102950.0,0.06144803]
[1762894868416,0.50923652,102960.0,102950.0,0.06144803]
[1762894869217,0.50923652,102960.0,102950.0,0.15861693]
[1762894869810,0.50923652,102960.0,102950.0,0.06144803]
[1762894870319,0.70593528,102960.0,102950.0,0.15861693]
[1762894870620,0.50923652,102960.0,102950.0,0.15861693]
[1762894870918,0.70593528,102960.0,102950.0,0.15861693]
[1762894871521,0.70593528,102960.0,102950.0,0.06144803]
[1762894872420,0.50923652,102960.0,102950.0,0.06144803]
[1762894872616,0.70593528,102960.0,102950.0,0.06144803]
[1762894872821,0.70593528,102960.0,102950.0,0.15861693]
[1762894873922,0.50923652,102960.0,102950.0,0.15861693]
[1762894874118,0.70593528,102960.0,102950.0,0.15861693]
[1762894874918,0.50923652,102960.0,102950.0,0.15861693]
[1762894876223,0.41207702,102960.0,102950.0,0.15861693]
[1762894876525,0.50923652,102960.0,102950.0,0.15861693]
[1762894876730,0.88107652,102960.0,102950.0,0.15861693]
[1762894876932,1.07777528,102960.0,102950.0,0.06144803]
[1762894877115,1.07777528,102960.0,102950.0,0.01557803]
[1762894877426,0.1171689,102950.0,102940.0,0.00014598]
[1762894877730,0.69534865,102950.0,102940.0,0.00014598]
[1762894877918,0.69534865,102950.0,102940.0,0.03614598]
[1762894878119,0.69534865,102950.0,102940.0,0.00014598]
[1762894879123,0.89283107,102950.0,102940.0,0.00014598]
[1762894879327,0.89283107,102950.0,102900.0,0.5410599]
[1762894879328,0.1172067,102910.0,102900.0,0.41317142]
[1762894879522,0.0972161,102900.0,102890.0,0.07479217]
[1762894879725,0.11783966,102900.0,102890.0,0.05925]
[1762894880131,0.0972161,102900.0,102890.0,0.05925]
[1762894880328,0.7216,102900.0,102890.0,0.06144803]
[1762894880931,0.818816,102900.0,102890.0,0.06144803]
[1762894881118,0.818816,102900.0,102890.0,0.06244803]
[1762894881725,1.01551476,102900.0,102890.0,0.06244803]
[1762894881920,0.7216,102900.0,102890.0,0.06244803]
[1762894882121,0.818816,102900.0,102890.0,0.06244803]
[1762894882928,0.7216,102900.0,102890.0,0.06244803]
[1762894883235,0.3608,102900.0,102890.0,0.26014679]
[1762894884128,0.4580161,102900.0,102890.0,0.26014679]
[1762894884635,0.4580161,102900.0,102890.0,0.06344803]
[1762894886829,0.8188161,102900.0,102890.0,0.01757803]
[1762894887031,1.01551486,102900.0,102890.0,0.01757803]
[1762894887233,1.01551486,102900.0,102890.0,0.002]
[1762894887536,1.03588272,102900.0,102890.0,0.002]
[1762894887829,1.18072345,102900.0,102890.0,0.002]
[1762894889233,0.0972256,102890.0,102880.0,0.01352598]
[1762894889432,1.02712436,102890.0,102880.0,0.01352598]
[1762894889635,1.02712436,102890.0,102880.0,0.00014598]
[1762894889831,0.8304256,102890.0,102880.0,0.05923401]
[1762894890133,1.02712436,102890.0,102880.0,0.05923401]
[1762894890525,0.8304256,102890.0,102880.0,0.06123401]
[1762894890740,0.8304256,102890.0,102880.0,0.06323401]
[1762894891041,0.8304256,102890.0,102880.0,0.01927401]
[1762894891335,0.0972446,102870.0,102860.0,0.05696375]
[1762894891636,0.8304046,102870.0,102860.0,0.05916178]
[1762894891842,1.02710336,102870.0,102860.0,0.05916178]
[1762894892430,0.8304046,102870.0,102860.0,0.05916178]
[1762894892835,0.8314046,102870.0,102860.0,0.06716178]
[1762894893544,1.1922046,102870.0,102860.0,0.06716178]
[1762894893737,1.1912046,102870.0,102860.0,0.06216178]
[1762894893939,1.1912046,102870.0,102860.0,0.06316178]
[1762894894136,1.1912046,102870.0,102860.0,0.16041588]
[1762894894535,1.1912046,102870.0,102860.0,0.06316178]
[1762894895243,1.1912046,102870.0,102860.0,0.04072178]
[1762894895444,1.1912046,102870.0,102860.0,0.03772178]
[1762894895741,1.1912046,102870.0,102860.0,0.03872178]
[1762894896739,1.1912046,102870.0,102860.0,0.01720178]
[1762894897646,1.1912046,102870.0,102860.0,0.03872178]
[1762894897943,1.1912046,102870.0,102860.0,0.06116178]
[1762894899045,1.1912046,102870.0,102860.0,0.15841588]
[1762894899347,1.1912046,102870.0,102860.0,0.06116178]
[1762894900337,1.1912046,102870.0,102860.0,0.03872178]
[1762894900548,1.53395552,102870.0,102860.0,3.75e-06]
[1762894900844,0.0972541,102860.0,102850.0,0.01307598]
[1762894901039,0.65475286,102860.0,102850.0,0.01307598]
[1762894901246,0.4580541,102860.0,102850.0,0.03679401]
[1762894901442,0.4580541,102860.0,102850.0,0.05923401]
[1762894901644,0.45814947,102860.0,102850.0,0.03679401]
[1762894901845,0.45814947,102860.0,102850.0,0.01527401]
[1762894902040,0.65484823,102860.0,102850.0,0.00534401]
[1762894902238,0.79973974,102860.0,102850.0,0.00314598]
[1762894902833,0.82208598,102860.0,102850.0,0.00314598]
[1762894904448,0.0972732,102840.0,102830.0,0.01293]
[1762894904635,1.19148857,102840.0,102830.0,0.01512803]
[1762894904834,1.19148857,102840.0,102830.0,0.05908803]
[1762894905248,1.21385524,102840.0,102830.0,0.05908803]
[1762894905649,1.410554,102840.0,102830.0,0.003]
[1762894905947,1.21485524,102840.0,102830.0,0.007]
[1762894906147,1.411554,102840.0,102830.0,0.007]
[1762894907443,1.36002092,102840.0,102830.0,0.007]
[1762894907648,1.55671968,102840.0,102830.0,0.007]
[1762894907840,1.55571968,102840.0,102830.0,0.002]
[1762894908040,1.55671968,102840.0,102830.0,0.005]
[1762894908954,1.55771968,102840.0,102830.0,0.003]
[1762894909150,0.0972827,102830.0,102820.0,0.01307598]
[1762894909351,0.67722105,102830.0,102820.0,0.01307598]
[1762894910849,0.82329452,102830.0,102820.0,0.00014598]
[1762894911057,0.62759576,102830.0,102820.0,0.06089401]
[1762894911253,0.48152229,102830.0,102820.0,0.15818611]
[1762894911455,0.48152229,102830.0,102820.0,0.35488487]
[1762894911649,0.48152229,102830.0,102820.0,0.15818611]
[1762894913773,0.48152229,102830.0,102820.0,0.06089401]
[1762894913965,0.48152229,102830.0,102820.0,0.15818611]
[1762894916163,0.45815832,102830.0,102820.0,0.15818611]
[1762894916873,0.45815832,102830.0,102820.0,0.06089401]
[1762894917170,0.45815832,102830.0,102820.0,0.15818611]
[1762894917367,0.45815832,102830.0,102820.0,0.06089401]
[1762894917669,0.45815832,102830.0,102820.0,0.15818611]
[1762894917872,0.65485708,102830.0,102820.0,0.06089401]
[1762894918467,0.45815832,102830.0,102820.0,0.06089401]
[1762894918671,0.45815832,102830.0,102820.0,0.15818611]
[1762894918972,0.45815832,102830.0,102820.0,0.06089401]
[1762894919475,0.65485708,102830.0,102820.0,0.01629401]
[1762894919666,0.45815832,102830.0,102820.0,0.01629401]
[1762894920673,0.65485708,102830.0,102820.0,0.01409598]
[1762894920866,0.65485708,102830.0,102820.0,0.00014598]
[1762894921068,0.8529449,102830.0,102820.0,0.00014598]
[1762894921266,0.0973111,102800.0,102790.0,7.382e-05]
[1762894921570,0.097327,102790.0,102780.0,0.1546099]
[1762894921773,0.48049367,102790.0,102780.0,0.05947803]
[1762894922371,0.48060223,102790.0,102780.0,0.05947803]
[1762894922771,0.67730099,102790.0,102780.0,0.01294]
[1762894922976,0.09733,102780.0,102770.0,0.03446598]
[1762894923273,0.85297667,102780.0,102770.0,0.03446598]
[1762894923473,0.85297667,102780.0,102770.0,0.05962401]
[1762894923672,0.0973489,102760.0,102750.0,0.01294]
[1762894923872,0.8534063,102760.0,102750.0,0.01513803]
[1762894924073,0.0973584,102750.0,102740.0,0.05728001]
[1762894924276,0.4581584,102750.0,102740.0,0.15684594]
[1762894924467,0.73369073,102760.0,102750.0,0.1416984]
[1762894924673,0.85286997,102760.0,102750.0,0.04653803]
[1762894924864,0.85286997,102760.0,102750.0,0.14389643]
[1762894925069,0.75552107,102760.0,102750.0,0.14389643]
[1762894925269,0.73369073,102760.0,102750.0,0.14389643]
[1762894925475,9.073e-05,102760.0,102750.0,0.75293745]
[1762894926074,0.00014598,102770.0,102760.0,0.1546289]
[1762894926279,0.00014598,102770.0,102760.0,0.76586795]
[1762894926780,0.00014598,102770.0,102760.0,0.40506795]
[1762894926980,0.36322247,102770.0,102760.0,0.40360259]
[1762894927280,0.36322247,102770.0,102760.0,0.15836157]
[1762894927281,0.50554197,102770.0,102760.0,0.15836157]
[1762894927577,0.40820247,102770.0,102760.0,0.40660259]
[1762894927973,0.38703247,102770.0,102760.0,0.40660259]
[1762894928476,0.38703247,102770.0,102760.0,0.15836157]
[1762894928673,0.50554197,102770.0,102760.0,0.15836157]
[1762894928877,0.50654197,102770.0,102760.0,0.16436157]
[1762894929178,0.40920247,102770.0,102760.0,0.16436157]
[1762894929773,0.40920247,102770.0,102760.0,0.41260259]
[1762894929984,0.38803247,102770.0,102760.0,0.41260259]
[1762894930167,0.40920247,102770.0,102760.0,0.41260259]
[1762894930680,0.36522247,102770.0,102760.0,0.41260259]
[1762894931373,0.00222444,102770.0,102760.0,1.05588259]
[1762894932067,0.3608,102780.0,102770.0,0.0973395]
[1762894932274,0.3608,102780.0,102770.0,1.00709319]
[1762894932675,0.3608,102780.0,102770.0,1.40709319]
[1762894933381,0.3628,102780.0,102770.0,1.41509319]
[1762894933682,1.13629905,102780.0,102770.0,0.008]
[1762894933881,0.76317905,102780.0,102770.0,0.00873267]
[1762894934075,0.88066803,102780.0,102770.0,0.05307267]
[1762894936782,0.88066803,102780.0,102770.0,0.15041217]
[1762894937174,0.88066803,102780.0,102770.0,0.05307267]
[1762894937379,0.88066803,102780.0,102770.0,0.03011267]
[1762894937577,0.88066803,102780.0,102770.0,0.05307267]
[1762894937883,0.88066803,102780.0,102770.0,0.00873267]
[1762894938078,1.12890905,102780.0,102770.0,0.00873267]
[1762894938280,1.12890905,102780.0,102770.0,0.008]
[1762894938681,1.12890905,102780.0,102770.0,0.00873267]
[1762894939279,0.88066803,102780.0,102770.0,0.12745197]
[1762894939473,0.88066803,102780.0,102770.0,0.05307267]
[1762894940774,0.78333803,102780.0,102770.0,0.15041197]
[1762894941087,0.88066783,102780.0,102770.0,0.15041197]
[1762894942182,0.85729373,102780.0,102770.0,0.15041197]
[1762894943186,0.48293373,102780.0,102770.0,0.15041197]
[1762894943379,0.85705373,102780.0,102770.0,0.15041197]
[1762894943585,0.83588373,102780.0,102770.0,0.15041197]
[1762894943780,0.83588393,102780.0,102770.0,0.15041197]
[1762894944187,0.81307393,102780.0,102770.0,0.15041197]
[1762894944684,0.85742393,102780.0,102770.0,0.15041197]
[1762894944882,0.36329393,102780.0,102770.0,0.15041197]
[1762894945184,0.34162393,102780.0,102770.0,0.15041197]
[1762894945479,0.43895383,102780.0,102770.0,0.15041197]
[1762894945786,0.34162393,102780.0,102770.0,0.15041197]
[1762894946785,0.43895393,102780.0,102770.0,0.15041197]
[1762894947180,0.46062393,102780.0,102770.0,0.15041197]
[1762894947681,0.34162393,102780.0,102770.0,0.15041197]
[1762894948080,0.34162393,102780.0,102770.0,0.39865299]
[1762894948276,0.3394259,102780.0,102770.0,0.39865299]
[1762894948481,0.3394259,102780.0,102770.0,0.64189299]
[1762894948687,0.34162393,102780.0,102770.0,0.15041197]
[1762894948987,0.34162393,102780.0,102770.0,0.16372197]
[1762894948988,0.46062393,102780.0,102770.0,0.16372197]
[1762894949182,0.36329393,102780.0,102770.0,0.16372197]
[1762894949385,0.34162393,102780.0,102770.0,0.19852108]
[1762894950084,0.83235328,102790.0,102780.0,0.05729]
[1762894950290,0.73502598,102790.0,102780.0,0.15681803]
[1762894950490,0.87669648,102790.0,102780.0,0.15681803]
[1762894950685,0.50261648,102790.0,102780.0,0.15681803]
[1762894950892,0.40529598,102790.0,102780.0,0.15681803]
[1762894951293,0.00014598,102790.0,102780.0,0.16181803]
[1762894951588,0.00214598,102790.0,102780.0,0.16581803]
[1762894952291,0.09946648,102790.0,102780.0,0.16581803]
[1762894952489,0.00214598,102790.0,102780.0,0.16581803]
[1762894952890,0.00214598,102790.0,102780.0,0.69209816]
[1762894953090,0.00214598,102790.0,102780.0,1.05289816]
[1762894953399,0.00214598,102790.0,102780.0,1.07029772]
[1762894953588,0.00214598,102790.0,102780.0,0.82705772]
[1762894953895,0.00214598,102790.0,102780.0,1.07029772]
[1762894954597,0.00214598,102790.0,102780.0,0.82705772]
[1762894954896,0.00214598,102790.0,102780.0,1.07029772]
[1762894955396,0.73452,102810.0,102800.0,0.154601]
[1762894955696,0.73452,102810.0,102800.0,0.15679903]
[1762894955891,0.8318216,102810.0,102800.0,0.15679903]
[1762894956099,0.75619,102810.0,102800.0,0.15679903]
[1762894956598,0.40615,102810.0,102800.0,0.15979903]
[1762894957395,0.5034516,102810.0,102800.0,0.15979903]
[1762894957602,0.5034516,102810.0,102800.0,0.16279903]
[1762894959590,0.40615,102810.0,102800.0,0.16279903]
[1762894959797,0.5034516,102810.0,102800.0,0.16279903]
[1762894959983,0.5034516,102810.0,102800.0,0.00819803]
[1762894959984,0.76463262,102810.0,102800.0,0.00819803]
[1762894961895,0.5034516,102810.0,102800.0,0.16279903]
[1762894962493,0.1492511,102800.0,102790.0,0.00014598]
[1762894962697,1.13209212,102800.0,102790.0,0.00014598]
[1762894962890,1.13209212,102800.0,102790.0,0.00234401]
[1762894963096,0.5100511,102800.0,102790.0,0.02369401]
[1762894963597,0.5110511,102800.0,102790.0,0.00634401]
[1762894963903,0.5110511,102800.0,102790.0,0.00934401]
[1762894964592,0.5110511,102800.0,102790.0,0.00714598]
[1762894964792,0.75929212,102800.0,102790.0,0.00714598]
[1762894965585,0.75929212,102800.0,102760.0,0.06110561]
[1762894965586,0.04435,102770.0,102760.0,0.06110561]
[1762894965790,1.48637052,102770.0,102760.0,0.00219803]
[1762894966697,1.48637052,102770.0,102760.0,0.00619803]
[1762894967001,1.48837052,102770.0,102760.0,0.00919803]
[1762894967194,1.48837052,102770.0,102760.0,0.007]
[1762894968402,1.48837052,102770.0,102760.0,0.10654693]
[1762894968595,1.2401295,102770.0,102760.0,0.05317803]
[1762894968799,1.2401295,102770.0,102760.0,0.15052693]
[1762894968996,1.2401295,102770.0,102760.0,0.10654693]
[1762894969298,1.2401295,102770.0,102760.0,0.00919803]
[1762894969598,1.2401295,102770.0,102760.0,0.10654693]
[1762894969993,1.2401295,102770.0,102760.0,0.00919803]
[1762894970497,1.2401295,102770.0,102760.0,0.10654693]
[1762894970697,1.2401295,102770.0,102760.0,0.15105693]
[1762894970897,1.14279,102770.0,102760.0,0.10654693]
[1762894971095,1.2401295,102770.0,102760.0,0.15257693]
[1762894971495,1.2401295,102770.0,102760.0,0.12941693]
[1762894971800,1.2401295,102770.0,102760.0,0.10654693]
[1762894974206,1.2401295,102770.0,102760.0,0.00919803]
[1762894974402,1.2401295,102770.0,102760.0,0.10654693]
[1762894974801,1.2401295,102770.0,102760.0,0.00919803]
[1762894975004,1.48837052,102770.0,102760.0,0.00919803]
[1762894975504,1.48837052,102770.0,102760.0,0.10654693]
[1762894976516,1.2401295,102770.0,102760.0,0.12941693]
[1762894976800,0.76795,102770.0,102760.0,0.16601693]
[1762894977208,0.73288714,102770.0,102760.0,0.16601693]
[1762894979298,0.83022664,102770.0,102760.0,0.16601693]
[1762894979494,0.73288714,102770.0,102760.0,0.16601693]
[1762894980397,0.83022664,102770.0,102760.0,0.16601693]
[1762894981804,0.73288714,102770.0,102760.0,0.16601693]
[1762894982404,0.83022664,102770.0,102760.0,0.16601693]
[1762894984207,0.83022664,102770.0,102760.0,0.06866803]
[1762894985508,0.83022664,102770.0,102760.0,0.00919803]
[1762894985813,1.02770892,102770.0,102760.0,0.007]
[1762894986013,1.02770892,102770.0,102760.0,0.0209]
[1762894986508,1.02770892,102770.0,102760.0,0.04335]
[1762894986710,1.02770892,102770.0,102760.0,0.04554803]
[1762894986911,0.83022664,102770.0,102760.0,0.16570693]
[1762894987103,0.83022664,102770.0,102760.0,0.38936298]
[1762894987104,0.7236,102770.0,102760.0,0.38936298]
[1762894987507,0.7236,102770.0,102760.0,0.39812105]
[1762894988000,0.002,102770.0,102760.0,0.64140105]